Cogmind - Beta 17 *** ADVENTURER MODE // 2026.07.07 @ 16:34:29 Player: smidge Result: Destroyed by Y-45 Defender with Heavy Assault Rifle Performance ------------- Evolutions (1) 500 Regions Visited (2) 400 Robots Destroyed (16) 80 Value Destroyed (275) 275 Prototype IDs (0) 0 Alien Tech Used (0) 0 Bonus (0) 0 TOTAL SCORE: 1255 Bonus ------- None Cogmind --------- Core Integrity 0/400 Matter 241/300 Energy 100/100 System Corruption 0% Temperature Cool (0) Movement Core (200) Ox3 Location -9/Materials Parts ------- > --- POWER (1) -------- (None) > --- PROPULSION (3) --- (None) > --- UTILITY (3) ------ Medium Storage Unit Salvage Targeting Computer > --- WEAPON (2) ------- (None) > --- INVENTORY (10) --- Light Ion Engine Small Storage Unit Large Storage Unit Improved Terrain Scanner Salvage Targeting Computer Mining Laser Peak State ------------ > --- POWER ------------ Light Ion Engine > --- PROPULSION ------- Aluminum Leg Aluminum Leg Aluminum Leg > --- UTILITY ---------- Medium Storage Unit Improved Terrain Scanner Seismic Detector > --- WEAPON ----------- Small Laser Light Assault Rifle > --- INVENTORY -------- Light Ion Engine Small Storage Unit Mining Laser [Rating: 11] Favorites ----------- Power Light Ion Engine Engine Light Ion Engine Propulsion Aluminum Leg Leg Aluminum Leg Utility Medium Storage Unit Device Seismic Detector Storage Medium Storage Unit Processor Salvage Targeting Computer Weapon Light Assault Rifle Energy Gun Small Laser Ballistic Gun Light Assault Rifle Launcher Mini Grenade Launcher Build | -11 -10 -9 ------- Run | Yrd Mat Mat Slots Evolved 2 | . . 2 Power . | . . . Propulsion 1 | . . 1 Utility 1 | . . 1 Weapon . | . . . Parts Attached 13 | 6 2 5 Power 1 | 1 . . Engine 1 | 1 . . Core . | . . . Reactor . | . . . Propulsion 3 | 2 . 1 Treads . | . . . Leg 3 | 2 . 1 Wheel . | . . . Hover . | . . . Flight . | . . . Utility 5 | 1 2 2 Device 2 | . 1 1 Storage 2 | 1 1 . Processor 1 | . . 1 Hackware . | . . . Protection . | . . . Artifact . | . . . Weapon 4 | 2 . 2 Energy Gun 1 | 1 . . Energy Cannon . | . . . Ballistic Gun 1 | 1 . . Ballistic Cannon . | . . . Launcher 2 | . . 2 Special Weapon . | . . . Impact Weapon . | . . . Slashing Weapon . | . . . Piercing Weapon . | . . . Special Melee Weapon . | . . . Unidentified Prototypes . | . . . Parts Lost 9 | . . 9 Power 1 | . . 1 Propulsion 3 | . . 3 Utility 1 | . . 1 Weapon 4 | . . 4 Highest Loss Streak 7 | . . 7 To Critical Strikes . | . . . Average Backups 3 | . 2 4 Power . | . 1 1 Propulsion . | . . . Utility 1 | . . 2 Weapon . | . . 1 Tool/Special . | . . . Unused Backups 4 | . . 4 Power 1 | . . 1 Propulsion . | . . . Utility 2 | . . 2 Weapon 1 | . . 1 Tool/Special . | . . . Average Slot Usage (%) 79 | . 87 76 Engine 8 | . 14 5 Leg 27 | . 28 27 Device 4 | . 1 6 Storage 12 | . 15 11 Processor 4 | . . 7 Energy Gun 10 | . 14 8 Ballistic Gun 10 | . 14 9 Peak Build Rating 11 | 6 7 11 Average Rating 6 | 4 6 7 On Entrance 4 | . 6 7 Avg Prop Armor Cover (%) . | . . . Naked Turns . | . . . Heaviest Build 17 | 10 16 17 Greatest Support 30 | 20 20 30 Greatest Overweight (x) 3 | 2 . 3 Average Overweight (x) . | . . . Largest Inventory Capacity 10 | 8 10 10 Average Capacity 9 | 7 9 10 Most Carried 6 | 1 4 6 Average Carried 3 | . 2 4 Final Capacity 10 | 8 10 10 Final Carried 6 | 1 4 6 Class Distribution -------------------- 100% | Mutant Dominant Class ---------------- Mutant | -10/Materials Mutant | -9/Materials Resources | -11 -10 -9 ----------- Run | Yrd Mat Mat Matter Collected 326 | 203 13 110 Remotely . | . . . Salvage Created 404 | . 13 391 Parts 34 | . 4 30 Haulers Intercepted 1 | . . 1 Recyclers Shooed 1 | . . 1 Parts Field Recycled . | . . . Retrieved Matter . | . . . Parts Self-Destructed . | . . . Prevented . | . . . Parts Restored . | . . . Kills | -11 -10 -9 ------- Run | Yrd Mat Mat Combat Hostiles Destroyed 9 | . . 9 Guns 5 | . . 5 AOE 4 | . . 4 Classes Destroyed 8 | . 1 7 Worker 2 | . . 2 Builder 1 | . . 1 Tunneler 1 | . 1 . Hauler 1 | . . 1 Recycler 2 | . . 2 Swarmer 3 | . . 3 Grunt 5 | . . 5 Duelist 1 | . . 1 Best Kill Streak 9 | . 1 9 Combat Bots Only 4 | . . 4 Max Kills in Single Turn 3 | . 1 3 Gunslinging 1 | . . 1 Exploded 2 | . . 2 Melee . | . . . Uniques/NPCs Destroyed . | . . . Combat | -11 -10 -9 -------- Run | Yrd Mat Mat Hostile Shots Fired 121 | . . 121 Missed 28 | . . 28 Hits 93 | . . 93 Melee 5 | . . 5 Projectile 88 | . . 88 Critical Strikes 6 | . . 6 Damage Taken 1097 | . . 1097 Core 407 | . . 407 Absorbed by Shields . | . . . Ignored by Resistances 315 | . . 315 Core Remaining (%) 100 | 100 100 . Volleys Fired 35 | . 4 31 Largest 2 | . 2 2 Hottest 60 | . 60 60 Shots Fired 67 | . 8 59 Gun 61 | . 8 53 Cannon . | . . . Launcher 6 | . . 6 Special . | . . . Kinetic 33 | . 4 29 Thermal 28 | . 4 24 Explosive 6 | . . 6 Electromagnetic . | . . . Robot Hit Streak 22 | . 2 22 Robot Miss Streak 2 | . 2 2 Penetration Max . | . . . Secondary Targets 2 | . . 2 Max Gunslinging Chain 1 | . . 1 Shots Hit Robots 55 | . 4 51 Core Hits 26 | . 2 24 Critical Kills . | . . . Critical Parts Destroyed . | . . . Critical Strikes . | . . . Melee Attacks . | . . . Impact . | . . . Slashing . | . . . Piercing . | . . . Sneak Attacks . | . . . Combat Hostiles . | . . . Follow-up Attacks . | . . . Damage Inflicted 1170 | . 37 1133 Guns 477 | . 37 440 Cannons . | . . . Explosions 693 | . . 693 Melee . | . . . Ramming . | . . . Kinetic 209 | . 16 193 Thermal 268 | . 21 247 Explosive 693 | . . 693 Electromagnetic . | . . . Impact . | . . . Slashing . | . . . Piercing . | . . . Highest Corruption 1 | . 1 . Average Corruption 1 | . 1 . Corruption Purged . | . . . Corruption Blocked . | . . . Overload Shots . | . . . Overflow Damage 3 | . . 3 Projectiles . | . . . Explosions 3 | . . 3 Melee . | . . . Knockbacks . | . . . Impact . | . . . Kinetic . | . . . Secondary . | . . . Self-Inflicted Damage 93 | . . 93 Shots 4 | . . 4 Rammed . | . . . Targets Rammed . | . . . Kicked . | . . . Crushed . | . . . Highest Temperature 50 | . 20 50 Average Temperature 14 | . 15 13 Received Heat Transfer 504 | . . 504 Siege Activations . | . . . Martial Activations . | . . . Shielding Activations . | . . . Robots Disrupted . | . . . Combat Hostiles . | . . . Robots Corrupted . | . . . Combat Hostiles . | . . . Parts Fried . | . . . Impact Corruptions . | . . . Robots Melted . | . . . Combat Hostiles . | . . . Parts Melted . | . . . Heat Transferred 600 | . 50 550 Parts Sabotaged . | . . . Parts Stolen . | . . . Parts Stripped . | . . . Power Chain Reactions . | . . . Alert | -11 -10 -9 ------- Run | Yrd Mat Mat Maximum Alert Level . | . . . Low Security (%) 100 | 100 100 100 Level 1 . | . . . Level 2 . | . . . Level 3 . | . . . Level 4 . | . . . Level 5 . | . . . High Security . | . . . Max Security . | . . . Peak Influence 96 | . 16 96 Initial . | . . . Average 24 | . 2 41 Influence Increases 303 | . 21 282 Destroy 0b10 Robot/C 180 | . . 180 Destroy 0b10 Robot/NC 35 | . 5 30 Destroy Leader 32 | . . 32 Successful Hack 22 | . 16 6 Destroy Structure 34 | . . 34 Influence Decreases 217 | . 20 197 Entered New Map 1 | . . 1 Time Decay 126 | . 20 106 Lost Part 90 | . . 90 Squads Dispatched 1 | . . 1 Investigation 1 | . . 1 Extermination . | . . . Reinforcement . | . . . Assault . | . . . Garrison . | . . . Intercept . | . . . Searches Triggered . | . . . Construction Impeded . | . . . Haulers Reinforced . | . . . Active Scanning Responses . | . . . Cargo Convoy Interrupts . | . . . Stealth | -11 -10 -9 --------- Run | Yrd Mat Mat Distress Signals 1 | . . 1 Communications Jammed . | . . . Distress Signals . | . . . Times Spotted 17 | . 1 16 Peak Tracking Total 8 | . 1 8 Tactical Retreats . | . . . Traps | -11 -10 -9 ------- Run | Yrd Mat Mat Traps Triggered 2 | . 1 1 Indirectly . | . . . Trap Hack Attempts . | . . . Triggered . | . . . Disarmed . | . . . Reprogrammed . | . . . Reused . | . . . Traps Extracted . | . . . Installed . | . . . Triggered . | . . . Machines | -11 -10 -9 ---------- Run | Yrd Mat Mat Machines Disabled . | . . . Max in Single Turn . | . . . Machines Repaired . | . . . Machines Dismantled . | . . . Machines Sabotaged . | . . . Overloaded Fab Kills . | . . . Hacking | -11 -10 -9 --------- Run | Yrd Mat Mat Machines Accessed 2 | . 1 1 Terminals 2 | . 1 1 Fabricators . | . . . Repair Stations . | . . . Recycling Units . | . . . Scanalyzers . | . . . Garrison Access . | . . . Total Hacks 4 | . 1 3 Successful 3 | . 1 2 Failed 1 | . . 1 Catastrophic . | . . . Database Lockouts . | . . . Manual . | . . . Terminals 4 | . 1 3 Fabricators . | . . . Repair Stations . | . . . Recycling Units . | . . . Scanalyzers . | . . . Garrison Access . | . . . Terminal Hacks 3 | . 1 2 Repair Station Index 1 | . 1 . Scanalyzer Index 1 | . . 1 Zone Layout 1 | . . 1 Fabricator Hacks . | . . . Repair Station Hacks . | . . . Recycling Unit Hacks . | . . . Scanalyzer . | . . . Garrison Access Hacks . | . . . Unauthorized Hacks . | . . . Terminals . | . . . Fabricators . | . . . Repair Stations . | . . . Recycling Units . | . . . Scanalyzers . | . . . Garrison Access . | . . . Data Cores Recovered . | . . . Used . | . . . Hacking Detections 1 | . 1 . Full Trace Events . | . . . Feedback Events . | . . . Feedback Blocked . | . . . Robot Schematics Acquired . | . . . Robots Built . | . . . Authchips . | . . . Time . | . . . Total Robot Build Rating . | . . . Part Schematics Acquired . | . . . Parts Built . | . . . Authchips . | . . . Time . | . . . Total Part Build Rating . | . . . Part Studies Acquired . | . . . Parts Repaired . | . . . Time . | . . . Parts Recycled . | . . . Recycled Matter . | . . . Retrieved Matter . | . . . Retrieved Components . | . . . Parts Scanalyzed . | . . . Part Schematics Acquired . | . . . Parts Damaged . | . . . Bothacking | -11 -10 -9 ------------ Run | Yrd Mat Mat Used RIF Installer . | . . . Robots Hacked . | . . . Non-combat . | . . . Combat . | . . . Robot Hacks Applied . | . . . Relay Couplers Released . | . . . Fabnet Peak Effective % . | . . . Robots Rewired . | . . . Allies Hacked . | . . . Hacks Repelled . | . . . Allies | -11 -10 -9 -------- Run | Yrd Mat Mat Total Allies . | . . . Largest Group . | . . . Highest-Rated Group . | . . . Highest-Rated Ally . | . . . Total Orders . | . . . Ally Attacks . | . . . Total Damage . | . . . Kills . | . . . Allies Corrupted . | . . . Allies Melted . | . . . Intel | -11 -10 -9 ------- Run | Yrd Mat Mat Active Infowar (turns) 121 | . 10 111 Terrain 30 | . . 30 Seismic 121 | . 10 111 Robot Analysis Total . | . . . Derelict Logs Recovered . | . . . Drone Launches . | . . . Drone Recoveries . | . . . Exploration | -11 -10 -9 ------------- Run | Yrd Mat Mat Turns Passed 440 | 48 140 252 Spaces Moved 260 | 34 103 123 Core 19 | 6 . 13 Treads . | . . . Legs 241 | 28 103 110 Wheels . | . . . Hover . | . . . Flight . | . . . Fastest Speed 50 | 50 120 120 Average Speed 123 | 113 120 128 Slowest Speed 200 | 150 120 200 Overloaded Moves . | . . . Propulsion Burnouts . | . . . Robots Hopped . | . . . Potential Cave-ins . | . . . Cave-ins Triggered . | . . . Exploration Rate (%) 18 | 3 30 23 Regions Visited 2 Branch Regions . Pre-discovered Areas . | . . . Known Exits Taken . | . . . Unknown Exits Taken 2 | 1 1 . Scrap Searched . | . . . Spaces Dug . | . . . Terrain Destroyed 34 | . . 34 Melee . | . . . Projectile . | . . . AOE 34 | . . 34 Terrain Rammed . | . . . Walls Destroyed . | . . . Machines Disabled . | . . . Actions | -11 -10 -9 --------- Run | Yrd Mat Mat Total 313 | 40 111 162 Wait . | . . . Move 258 | 33 102 123 Hop . | . . . Pick Up 6 | 1 2 3 Fast Attach 11 | 6 2 3 Attach 1 | . . 1 Detach 1 | . 1 . Swap 1 | . . 1 Drop . | . . . Fire 35 | . 4 31 Melee . | . . . Ram . | . . . Kick . | . . . Crush . | . . . Escape Stasis . | . . . Rewire . | . . . Trap . | . . . Miscellaneous . | . . . Route ------- -11/Scrapyard -10/Materials -9/Materials (discovered 1 exit: [*Min]) History --------- Turn | Location | Event 14 | -11/Scrapyard | Discovered new exit (range 15) 49 | -11/Scrapyard | Entered Materials 166 | -10/Materials | Discovered new exit (range 13) 189 | -10/Materials | Entered another Materials area 189 | -9/Materials | Evolved 2 slots: Propulsion x1, Utility x1 273 | -9/Materials | Discovered new exit (range 10) 303 | -9/Materials | Build established: Mutant 422 | -9/Materials | Core integrity fell below 50% 437 | -9/Materials | Core integrity fell below 20% 441 | -9/Materials | Destroyed by Y-45 Defender with Heavy Assault Rifle Last Messages --------------- 00413_ K-01 Serf collects debris. 00414_ G-34 Mercenary destroyed. 00414_ Mni. Grenade Launcher destroyed. 00414_ Destroyed Mni. Grenade Launcher. 00417_ K-01 Serf collects debris. 00418_ K-01 Serf destroyed. 00419_ Nuclear Reactor explodes. 00419_ Terminal disabled. 00421_ Critical hit (Burn: +37). 00425_ The unstable cave ceiling collapses. 00428_ K-01 Serf collects debris. 00428_ R-06 Scavenger collects Wheel. 00430_ The unstable cave ceiling collapses. 00431_ R-06 Scavenger collects Wheel. 00432_ K-01 Serf collects debris. 00432_ R-06 Scavenger collects Lgt. Ion Engine. 00435_ Critical hit (Burn: +37). 00435_ R-06 Scavenger destroyed. 00435_ R-06 Scavenger collects Sml. Matter Pod. 00439_ R-06 Scavenger collects Terrain Scan Processor. Map ----- +----------------------------------------------------+ | ???????????????????????? ????????????????????? | | ???????????????????????? ?????????????????????? | | ???????????????????????? =######????????????????? | | ?????????????????????### /! #???????????????? | | ????????????????????# [=% #???????????????? | | ??????????????????### %[=%= ????????????????? | | ??????????????????# *![[= ????????????????? | | ?????????????????## !% !! #???????????????? | | ?????????????????# = # #???????????????? | | ?????????????????# ???????????????? | | ?????????????????# ! = ??????????????? | | ?????????????????# ! * ??????????????? | | ?????????????????##! = #?????????????? | | ?????????????????# Y #?????????????? | | ?????????????????## % % #?????????????? | | ??????????????????# !*= #????????????? | | ???????????????###### #r%%*# # ##????????????? | | ??????????????##! g =* ??????????? | | ??????????????#! ??????????? | | ??????????????#! ??????????? | | ??????????????# ############??????????? | | ????????????#?#! ###########???????????? | | ??????????#???##! # #???????????? | | ???????????????#### # #???????????? | | #########?????????# + #???????????? | | #?????????###### @ # #???????????? | | #??????????##### ###########???????????? | | #???????????#""" #????????????????????? | | #???????????#" #????????????????????? | | ##??????????#"| #????????????????????? | | !! #???????????#"" < #????????????????????? | | !! #???????????#"|k % #????????????????????? | | !! [ #???????????#" #????????????????????? | | =#??????#????#""" #????????????????????? | | ! %################ ###########???????????? | | ##### # #???????????? | | a/ #???????????? | | g # #???????????? | | #### # #???????????? | | # """ ###? #???????????? | | " + """ ##### #??? #???????????? | | " # """ !#???# #???? = #???????????? | | " # !#???# #???? #???????????? | | ?? # #???# #?????#######???????????? | | ???# #???# #???????????????????????? | | ???# =! #???# #???????????????????????? | | ???# "Y" = #???? ????????????????????????? | | ???# """ % #???? ????????????????????????? | | ???# #???? ????????????????????????? | | ???# #???? ????????????????????????? | +----------------------------------------------------+ Best States ------------- Heat Dissipation 28 Energy Generation 10 Energy Capacity 125 Matter Stores 300 Matter Capacity 300 Sight Range 16 Terrain Scan Range 16 Terrain Scan Density 10 Resistance: KI 20 Resistance: TH 20 Resistance: EX 20 Resistance: EM 20 Resistance: I 20 Resistance: S 20 Resistance: P 20 Evasion (%) 55 Salvage Targeting 1 Offensive Hacking 10 Item Schematics ----------------- None Robot Schematics ------------------ None Fabricated ------------ Nothing Repaired ---------- Nothing Studied --------- None Alien Tech Used ----------------- None Achievements -------------- None Challenges ------------ None Game ------ Seed ScimitarDisruptorTube Manual? 0 Play Time 00:08:05 Cumulative 71.2 hours Start 2026.07.07 @ 16:29:01 End 2026.07.07 @ 16:34:29 Sessions 1 Manual Loads 0 Difficulty Adventurer Special Mode None Game No. 61 Rogue 0 Adventurer 61 Explorer 0 Win Type - Total 2 Types 1/0/0/1/0/0/0/0/0/0 Lore% 32 Gallery% 43 Achievement% 37 Wizard Run 0 Options --------- Layout 0 ASCII 0 Keyboard 0 Movement Mouse Keybinds 0 Fullscreen 0 Font 16/SmallcapsGlow Map View 76x50 Zoom Use 0% Tactical HUD 1 Map Filters NONE Filters NONE Steam 1 RUN: 12146ee0-4f5c-4cbd-8ad8-d80c40fbaab5